[Event "Titled Tuesday Blitz June 21 Early 2022"]
[White "Warchol, Kamil"]
[Black "Trakru, Rohun"]
[WhiteFideId "21858241"]
[BlackFideId "2097613"]
[WhiteElo "1951"]
[BlackElo "1746"]
[Result "0-1"]
[Round "05"]
[TimeControl "180+1"]
[Date "2022.06.22"]
[WhiteClock "0:00:01"]
[BlackClock "0:01:01"]

1. e4 {[%clk 0:02:33]}  e6 {[%clk 0:02:58]} 2. d4 {[%clk 0:02:32]}  d5 {[%clk 0:02:59]} 3. Nc3 {[%clk 0:02:31]}  Nf6 {[%clk 0:02:57]} 4. Bg5 {[%clk 0:02:29]}  Bb4 {[%clk 0:02:57]} 5. e5 {[%clk 0:01:42]}  h6 {[%clk 0:02:56]} 6. Bd2 {[%clk 0:01:42]}  Bxc3 {[%clk 0:02:56]} 7. bxc3 {[%clk 0:01:42]}  Ne4 {[%clk 0:02:56]} 8. Bc1 {[%clk 0:01:41]}  Nxc3 {[%clk 0:02:45]} 9. Qg4 {[%clk 0:01:37]}  g6 {[%clk 0:02:36]} 10. Bd3 {[%clk 0:01:34]}  h5 {[%clk 0:02:28]} 11. Qf4 {[%clk 0:01:17]}  c5 {[%clk 0:02:25]} 12. dxc5 {[%clk 0:01:08]}  Nc6 {[%clk 0:02:25]} 13. Nf3 {[%clk 0:01:06]}  Qa5 {[%clk 0:02:17]} 14. O-O {[%clk 0:00:54]}  Qxc5 {[%clk 0:02:16]} 15. a4 {[%clk 0:00:48]}  Qf8 {[%clk 0:02:02]} 16. Bb2 {[%clk 0:00:42]}  Ne4 {[%clk 0:01:59]} 17. Bxe4 {[%clk 0:00:38]}  dxe4 {[%clk 0:02:00]} 18. Ng5 {[%clk 0:00:39]}  Bd7 {[%clk 0:01:57]} 19. Nxe4 {[%clk 0:00:39]}  O-O-O {[%clk 0:01:57]} 20. Nd6+ {[%clk 0:00:38]}  Kb8 {[%clk 0:01:57]} 21. Ba3 {[%clk 0:00:37]}  Qg7 {[%clk 0:01:52]} 22. Nxf7 {[%clk 0:00:37]}  Rhf8 {[%clk 0:01:42]} 23. Bd6+ {[%clk 0:00:32]}  Ka8 {[%clk 0:01:39]} 24. Bxf8 {[%clk 0:00:30]}  Rxf8 {[%clk 0:01:38]} 25. Rad1 {[%clk 0:00:29]}  Rxf7 {[%clk 0:01:36]} 26. Qd2 {[%clk 0:00:26]}  Qxe5 {[%clk 0:01:34]} 27. Qd6 {[%clk 0:00:25]}  Qg5 {[%clk 0:01:30]} 28. f4 {[%clk 0:00:24]}  Qd8 {[%clk 0:01:27]} 29. Rf3 {[%clk 0:00:20]}  a6 {[%clk 0:01:20]} 30. Rfd3 {[%clk 0:00:20]}  Qb6+ {[%clk 0:01:19]} 31. Kh1 {[%clk 0:00:19]}  h4 {[%clk 0:01:16]} 32. Qa3 {[%clk 0:00:16]}  Bc8 {[%clk 0:01:11]} 33. Qd6 {[%clk 0:00:14]}  Qf2 {[%clk 0:01:08]} 34. Rf3 {[%clk 0:00:12]}  Qxc2 {[%clk 0:01:07]} 35. Rff1 {[%clk 0:00:09]}  Rd7 {[%clk 0:01:05]} 36. Qxd7 {[%clk 0:00:07]}  Bxd7 {[%clk 0:01:04]} 37. Rxd7 {[%clk 0:00:08]}  h3 {[%clk 0:01:04]} 38. gxh3 {[%clk 0:00:07]}  Qe4+ {[%clk 0:01:04]} 39. Kg1 {[%clk 0:00:07]}  Nd4 {[%clk 0:01:04]} 40. Rd8+ {[%clk 0:00:05]}  Ka7 {[%clk 0:01:04]} 41. Rd1 {[%clk 0:00:04]}  Qe3+ {[%clk 0:01:03]} 42. Kf1 {[%clk 0:00:01]}  Qe2+ {[%clk 0:01:01]} 0-1


[Site "https://www.chess.com"]

[Event "Titled Tuesday Blitz June 21 Early 2022"]
[White "Wartiovaara, Oliver"]
[Black "Piliczewski, Bogusz"]
[WhiteFideId "513024"]
[BlackFideId "1104144"]
[WhiteElo "1971"]
[BlackElo "1896"]
[Result "1-0"]
[Round "05"]
[TimeControl "180+1"]
[Date "2022.06.22"]
[WhiteClock "0:00:55"]
[BlackClock "0:00:07"]

1. Nf3 {[%clk 0:03:00]}  d5 {[%clk 0:02:56]} 2. g3 {[%clk 0:02:55]}  Nf6 {[%clk 0:02:56]} 3. Bg2 {[%clk 0:02:55]}  Bf5 {[%clk 0:02:56]} 4. O-O {[%clk 0:02:53]}  e6 {[%clk 0:02:57]} 5. d3 {[%clk 0:02:54]}  h6 {[%clk 0:02:57]} 6. Nc3 {[%clk 0:02:54]}  Be7 {[%clk 0:02:57]} 7. e4 {[%clk 0:02:54]}  dxe4 {[%clk 0:02:51]} 8. Ne5 {[%clk 0:02:53]}  Nbd7 {[%clk 0:02:03]} 9. Nxd7 {[%clk 0:02:52]}  Qxd7 {[%clk 0:02:03]} 10. dxe4 {[%clk 0:02:53]}  Qxd1 {[%clk 0:01:57]} 11. Rxd1 {[%clk 0:02:53]}  Bg6 {[%clk 0:01:47]} 12. e5 {[%clk 0:02:44]}  Nd7 {[%clk 0:01:47]} 13. Bxb7 {[%clk 0:02:44]}  Rd8 {[%clk 0:01:40]} 14. Bc6 {[%clk 0:02:37]}  Bb4 {[%clk 0:01:39]} 15. Bf4 {[%clk 0:02:11]}  Bxc2 {[%clk 0:01:27]} 16. Rd2 {[%clk 0:02:06]}  Bf5 {[%clk 0:01:24]} 17. Rad1 {[%clk 0:01:59]}  g5 {[%clk 0:01:06]} 18. Rxd7 {[%clk 0:01:43]}  Rxd7 {[%clk 0:01:01]} 19. Bxd7+ {[%clk 0:01:29]}  Ke7 {[%clk 0:01:00]} 20. Be3 {[%clk 0:01:28]}  Bg4 {[%clk 0:00:47]} 21. Rd2 {[%clk 0:01:25]}  Rd8 {[%clk 0:00:39]} 22. Ba4 {[%clk 0:01:21]}  Rxd2 {[%clk 0:00:30]} 23. Bxd2 {[%clk 0:01:22]}  Bc5 {[%clk 0:00:30]} 24. Kg2 {[%clk 0:01:16]}  Bd4 {[%clk 0:00:29]} 25. f4 {[%clk 0:01:16]}  gxf4 {[%clk 0:00:26]} 26. gxf4 {[%clk 0:01:13]}  Bf5 {[%clk 0:00:27]} 27. Bd1 {[%clk 0:01:11]}  c5 {[%clk 0:00:23]} 28. Bf3 {[%clk 0:01:10]}  a5 {[%clk 0:00:21]} 29. b3 {[%clk 0:01:08]}  Bd3 {[%clk 0:00:17]} 30. Ne2 {[%clk 0:00:58]}  Bb2 {[%clk 0:00:16]} 31. Bxa5 {[%clk 0:00:57]}  Bxe2 {[%clk 0:00:13]} 32. Bxe2 {[%clk 0:00:58]}  Bc1 {[%clk 0:00:13]} 33. Kf3 {[%clk 0:00:57]}  Kd7 {[%clk 0:00:10]} 34. Bc3 {[%clk 0:00:56]}  Kc6 {[%clk 0:00:10]} 35. Bc4 {[%clk 0:00:56]}  h5 {[%clk 0:00:07]} 36. a4 {[%clk 0:00:55]} 1-0


[Site "https://www.chess.com"]

[Event "Titled Tuesday Blitz June 21 Early 2022"]
[White "Williams, Simon K"]
[Black "Aaditya Dhingra"]
[WhiteFideId "404454"]
[BlackFideId "25678191"]
[WhiteElo "2468"]
[BlackElo "1849"]
[Result "0-1"]
[Round "05"]
[TimeControl "180+1"]
[Date "2022.06.22"]
[WhiteClock "0:00:01"]
[BlackClock "0:00:05"]

1. e4 {[%clk 0:03:00]}  c5 {[%clk 0:02:59]} 2. a3 {[%clk 0:02:55]}  e6 {[%clk 0:02:55]} 3. b4 {[%clk 0:02:55]}  b6 {[%clk 0:02:55]} 4. bxc5 {[%clk 0:02:54]}  bxc5 {[%clk 0:02:55]} 5. Nc3 {[%clk 0:02:55]}  Bb7 {[%clk 0:02:54]} 6. Rb1 {[%clk 0:02:54]}  Bc6 {[%clk 0:02:49]} 7. Nf3 {[%clk 0:02:54]}  Nf6 {[%clk 0:02:27]} 8. e5 {[%clk 0:02:51]}  Ng4 {[%clk 0:02:24]} 9. h3 {[%clk 0:02:48]}  Nh6 {[%clk 0:02:24]} 10. d4 {[%clk 0:02:45]}  Bxf3 {[%clk 0:02:19]} 11. Qxf3 {[%clk 0:02:43]}  Nc6 {[%clk 0:02:19]} 12. Bxh6 {[%clk 0:01:59]}  Nxd4 {[%clk 0:02:12]} 13. Qg3 {[%clk 0:01:34]}  Nf5 {[%clk 0:02:08]} 14. Qf4 {[%clk 0:01:31]}  Nxh6 {[%clk 0:02:06]} 15. Bd3 {[%clk 0:01:30]}  Qa5 {[%clk 0:01:59]} 16. Qc4 {[%clk 0:01:16]}  d5 {[%clk 0:01:46]} 17. exd6 {[%clk 0:01:08]}  Bxd6 {[%clk 0:01:45]} 18. O-O {[%clk 0:01:07]}  O-O {[%clk 0:01:42]} 19. Ne4 {[%clk 0:01:04]}  Be7 {[%clk 0:01:38]} 20. Rb7 {[%clk 0:01:03]}  Nf5 {[%clk 0:01:23]} 21. Rfb1 {[%clk 0:00:54]}  Rad8 {[%clk 0:01:08]} 22. Qc3 {[%clk 0:00:22]}  Qxc3 {[%clk 0:00:55]} 23. Nxc3 {[%clk 0:00:22]}  Bf6 {[%clk 0:00:53]} 24. Ne4 {[%clk 0:00:18]}  Bd4 {[%clk 0:00:52]} 25. Rxa7 {[%clk 0:00:17]}  c4 {[%clk 0:00:51]} 26. Rc7 {[%clk 0:00:13]}  cxd3 {[%clk 0:00:50]} 27. cxd3 {[%clk 0:00:14]}  Nd6 {[%clk 0:00:45]} 28. Nxd6 {[%clk 0:00:11]}  Rxd6 {[%clk 0:00:44]} 29. Rbb7 {[%clk 0:00:12]}  g6 {[%clk 0:00:39]} 30. g3 {[%clk 0:00:11]}  Bf6 {[%clk 0:00:34]} 31. Rb3 {[%clk 0:00:10]}  Rfd8 {[%clk 0:00:33]} 32. a4 {[%clk 0:00:10]}  Rxd3 {[%clk 0:00:32]} 33. Rbb7 {[%clk 0:00:10]}  Rf8 {[%clk 0:00:30]} 34. a5 {[%clk 0:00:10]}  Ra3 {[%clk 0:00:29]} 35. Rb5 {[%clk 0:00:09]}  Ra2 {[%clk 0:00:27]} 36. Rd7 {[%clk 0:00:08]}  Ra8 {[%clk 0:00:23]} 37. Rbb7 {[%clk 0:00:07]}  Rf8 {[%clk 0:00:15]} 38. Rb5 {[%clk 0:00:08]}  Bc3 {[%clk 0:00:14]} 39. Rc5 {[%clk 0:00:02]}  Bxa5 {[%clk 0:00:13]} 40. Ra7 {[%clk 0:00:02]}  Ra1+ {[%clk 0:00:14]} 41. Kg2 {[%clk 0:00:03]}  Bc3 {[%clk 0:00:14]} 42. Rd7 {[%clk 0:00:02]}  Ra3 {[%clk 0:00:13]} 43. Rcc7 {[%clk 0:00:02]}  Be5 {[%clk 0:00:12]} 44. Rb7 {[%clk 0:00:02]}  Bf6 {[%clk 0:00:12]} 45. h4 {[%clk 0:00:03]}  Ra2 {[%clk 0:00:12]} 46. Kf3 {[%clk 0:00:02]}  Be5 {[%clk 0:00:11]} 47. h5 {[%clk 0:00:02]}  gxh5 {[%clk 0:00:10]} 48. Kg2 {[%clk 0:00:02]}  Kg7 {[%clk 0:00:10]} 49. Kf3 {[%clk 0:00:02]}  Kg6 {[%clk 0:00:09]} 50. Ke3 {[%clk 0:00:03]}  Bf6 {[%clk 0:00:10]} 51. f4 {[%clk 0:00:03]}  Ra3+ {[%clk 0:00:09]} 52. Ke4 {[%clk 0:00:03]}  Rxg3 {[%clk 0:00:08]} 53. f5+ {[%clk 0:00:02]}  exf5+ {[%clk 0:00:08]} 54. Kf4 {[%clk 0:00:02]}  Rg4+ {[%clk 0:00:08]} 55. Kf3 {[%clk 0:00:02]}  h4 {[%clk 0:00:08]} 56. Rb6 {[%clk 0:00:02]}  Kg7 {[%clk 0:00:09]} 57. Rd5 {[%clk 0:00:02]}  Rg3+ {[%clk 0:00:08]} 58. Kf4 {[%clk 0:00:03]}  Bg5+ {[%clk 0:00:08]} 59. Kxf5 {[%clk 0:00:03]}  h3 {[%clk 0:00:08]} 60. Rb2 {[%clk 0:00:02]}  Rg2 {[%clk 0:00:08]} 61. Rb3 {[%clk 0:00:01]}  h2 {[%clk 0:00:08]} 62. Rh3 {[%clk 0:00:02]}  Re8 {[%clk 0:00:08]} 63. Rd4 {[%clk 0:00:02]}  Ree2 {[%clk 0:00:06]} 64. Rd7 {[%clk 0:00:01]}  Re1 {[%clk 0:00:06]} 65. Rxf7+ {[%clk 0:00:01]}  Kxf7 {[%clk 0:00:06]} 66. Rxh7+ {[%clk 0:00:01]}  Kg8 {[%clk 0:00:07]} 67. Rg7+ {[%clk 0:00:01]}  Kf8 {[%clk 0:00:05]} 68. Rf7+ {[%clk 0:00:01]}  Ke8 {[%clk 0:00:05]} 0-1


[Site "https://www.chess.com"]

[Event "Titled Tuesday Blitz June 21 Early 2022"]
[White "Zaloznyy, Mike"]
[Black "Mestnikov, Aisen"]
[WhiteFideId "2023075"]
[BlackFideId "34130117"]
[WhiteElo "2003"]
[BlackElo "2027"]
[Result "0-1"]
[Round "05"]
[TimeControl "180+1"]
[Date "2022.06.22"]
[WhiteClock "0:00:08"]
[BlackClock "0:00:07"]

1. Nf3 {[%clk 0:03:00]}  Nf6 {[%clk 0:02:59]} 2. e3 {[%clk 0:02:59]}  d5 {[%clk 0:02:58]} 3. b3 {[%clk 0:02:56]}  c5 {[%clk 0:02:58]} 4. Bb2 {[%clk 0:02:55]}  Nc6 {[%clk 0:02:58]} 5. Bb5 {[%clk 0:02:52]}  Bd7 {[%clk 0:02:56]} 6. Bxc6 {[%clk 0:02:44]}  Bxc6 {[%clk 0:02:55]} 7. Ne5 {[%clk 0:02:45]}  e6 {[%clk 0:02:54]} 8. Nxc6 {[%clk 0:02:42]}  bxc6 {[%clk 0:02:53]} 9. d3 {[%clk 0:02:42]}  Be7 {[%clk 0:02:49]} 10. Nd2 {[%clk 0:02:42]}  O-O {[%clk 0:02:43]} 11. O-O {[%clk 0:02:41]}  a5 {[%clk 0:02:42]} 12. a4 {[%clk 0:02:40]}  Bd6 {[%clk 0:02:41]} 13. Qe2 {[%clk 0:02:39]}  e5 {[%clk 0:02:38]} 14. e4 {[%clk 0:02:37]}  Re8 {[%clk 0:02:35]} 15. Rad1 {[%clk 0:02:24]}  Rb8 {[%clk 0:02:33]} 16. Ba1 {[%clk 0:02:13]}  Qd7 {[%clk 0:02:32]} 17. Rfe1 {[%clk 0:02:12]}  Qe6 {[%clk 0:02:21]} 18. Nf3 {[%clk 0:02:10]}  Nh5 {[%clk 0:02:04]} 19. g3 {[%clk 0:02:01]}  Qg6 {[%clk 0:01:52]} 20. exd5 {[%clk 0:01:45]}  cxd5 {[%clk 0:01:50]} 21. Qd2 {[%clk 0:01:42]}  f6 {[%clk 0:01:25]} 22. Qxa5 {[%clk 0:01:29]}  Qg4 {[%clk 0:01:24]} 23. Nd2 {[%clk 0:01:19]}  Nf4 {[%clk 0:01:18]} 24. f3 {[%clk 0:01:15]}  Nh3+ {[%clk 0:01:14]} 25. Kg2 {[%clk 0:01:07]}  Qh5 {[%clk 0:01:14]} 26. Qa6 {[%clk 0:00:57]}  Bf8 {[%clk 0:01:04]} 27. Qc6 {[%clk 0:00:53]}  Rbd8 {[%clk 0:01:02]} 28. Nf1 {[%clk 0:00:35]}  Ng5 {[%clk 0:01:00]} 29. Nd2 {[%clk 0:00:33]}  Qh3+ {[%clk 0:00:50]} 30. Kg1 {[%clk 0:00:33]}  Re6 {[%clk 0:00:48]} 31. Qb7 {[%clk 0:00:26]}  c4 {[%clk 0:00:41]} 32. f4 {[%clk 0:00:16]}  Bc5+ {[%clk 0:00:38]} 33. d4 {[%clk 0:00:16]}  exd4 {[%clk 0:00:26]} 34. b4 {[%clk 0:00:16]}  Bb6 {[%clk 0:00:13]} 35. fxg5 {[%clk 0:00:11]}  d3+ {[%clk 0:00:12]} 36. Kh1 {[%clk 0:00:12]}  Re2 {[%clk 0:00:09]} 37. Rg1 {[%clk 0:00:08]}  Qxh2# {[%clk 0:00:07]} 0-1


[Site "https://www.chess.com"]

[Event "Titled Tuesday Blitz June 21 Early 2022"]
[White "Ajay Krishna, S"]
[Black "Topalov, Aleksandar"]
[WhiteFideId "5096430"]
[BlackFideId "925659"]
[WhiteElo "2247"]
[BlackElo "2179"]
[Result "1/2-1/2"]
[Round "06"]
[TimeControl "180+1"]
[Date "2022.06.21"]
[WhiteClock "0:00:15"]
[BlackClock "0:00:09"]

1. d4 {[%clk 0:02:59]}  Nf6 {[%clk 0:02:59]} 2. c4 {[%clk 0:02:53]}  c5 {[%clk 0:02:59]} 3. d5 {[%clk 0:02:53]}  d6 {[%clk 0:03:00]} 4. Nc3 {[%clk 0:02:52]}  g6 {[%clk 0:03:00]} 5. e4 {[%clk 0:02:47]}  Bg7 {[%clk 0:03:00]} 6. Nf3 {[%clk 0:02:48]}  O-O {[%clk 0:03:00]} 7. Be2 {[%clk 0:02:44]}  e6 {[%clk 0:03:00]} 8. O-O {[%clk 0:02:44]}  Re8 {[%clk 0:03:01]} 9. Bf4 {[%clk 0:02:38]}  exd5 {[%clk 0:02:58]} 10. exd5 {[%clk 0:02:34]}  Nh5 {[%clk 0:02:57]} 11. Be3 {[%clk 0:02:33]}  Nd7 {[%clk 0:02:57]} 12. Qd2 {[%clk 0:02:32]}  Ne5 {[%clk 0:02:54]} 13. Nxe5 {[%clk 0:02:32]}  Rxe5 {[%clk 0:02:52]} 14. Bh6 {[%clk 0:02:17]}  Nf6 {[%clk 0:02:35]} 15. Bxg7 {[%clk 0:02:15]}  Kxg7 {[%clk 0:02:35]} 16. Bd3 {[%clk 0:02:10]}  Bd7 {[%clk 0:02:27]} 17. f4 {[%clk 0:02:09]}  Re8 {[%clk 0:02:24]} 18. f5 {[%clk 0:02:09]}  h6 {[%clk 0:02:12]} 19. fxg6 {[%clk 0:02:04]}  fxg6 {[%clk 0:02:12]} 20. Rf3 {[%clk 0:01:55]}  Qe7 {[%clk 0:02:05]} 21. Raf1 {[%clk 0:01:54]}  Rf8 {[%clk 0:02:05]} 22. Re1 {[%clk 0:01:22]}  Qd8 {[%clk 0:02:05]} 23. Bxg6 {[%clk 0:01:12]}  Kxg6 {[%clk 0:01:51]} 24. Rg3+ {[%clk 0:01:12]}  Kh7 {[%clk 0:01:44]} 25. Qd3+ {[%clk 0:01:08]}  Kh8 {[%clk 0:01:41]} 26. Qg6 {[%clk 0:01:08]}  Rg8 {[%clk 0:01:29]} 27. Qxh6+ {[%clk 0:01:07]}  Nh7 {[%clk 0:01:29]} 28. Rxg8+ {[%clk 0:01:01]}  Qxg8 {[%clk 0:01:29]} 29. Re7 {[%clk 0:01:00]}  Bf5 {[%clk 0:01:26]} 30. Qxd6 {[%clk 0:00:56]}  Qg5 {[%clk 0:01:06]} 31. Qe5+ {[%clk 0:00:41]}  Kg8 {[%clk 0:01:06]} 32. h4 {[%clk 0:00:32]}  Qg4 {[%clk 0:00:44]} 33. d6 {[%clk 0:00:27]}  Rf8 {[%clk 0:00:38]} 34. Nd5 {[%clk 0:00:25]}  Bd3 {[%clk 0:00:28]} 35. Re8 {[%clk 0:00:19]}  Qxh4 {[%clk 0:00:18]} 36. Ne7+ {[%clk 0:00:18]}  Kf7 {[%clk 0:00:17]} 37. Rxf8+ {[%clk 0:00:16]}  Nxf8 {[%clk 0:00:17]} 38. Qxc5 {[%clk 0:00:14]}  Qe1+ {[%clk 0:00:14]} 39. Kh2 {[%clk 0:00:14]}  Qh4+ {[%clk 0:00:14]} 40. Kg1 {[%clk 0:00:15]}  Qe1+ {[%clk 0:00:12]} 41. Kh2 {[%clk 0:00:15]}  Qh4+ {[%clk 0:00:09]} 42. Kg1 {[%clk 0:00:15]} 1/2-1/2


[Site "https://www.chess.com"]

[Event "Titled Tuesday Blitz June 21 Early 2022"]
[White "Alinasab, Mobina"]
[Black "Todorovic, Bojan"]
[WhiteFideId "12528897"]
[BlackFideId "917087"]
[WhiteElo "2031"]
[BlackElo "2266"]
[Result "1-0"]
[Round "06"]
[TimeControl "180+1"]
[Date "2022.06.21"]
[WhiteClock "0:01:53"]
[BlackClock "0:01:32"]

1. Nf3 {[%clk 0:03:00]}  Nf6 {[%clk 0:02:59]} 2. g3 {[%clk 0:03:00]}  g6 {[%clk 0:02:58]} 3. b3 {[%clk 0:02:59]}  Bg7 {[%clk 0:02:57]} 4. d4 {[%clk 0:03:00]}  O-O {[%clk 0:02:52]} 5. Bb2 {[%clk 0:03:01]}  d5 {[%clk 0:02:48]} 6. Bg2 {[%clk 0:03:02]}  Ne4 {[%clk 0:02:47]} 7. O-O {[%clk 0:03:03]}  c5 {[%clk 0:02:46]} 8. c3 {[%clk 0:03:02]}  Nc6 {[%clk 0:02:44]} 9. e3 {[%clk 0:03:01]}  b6 {[%clk 0:02:39]} 10. Nbd2 {[%clk 0:03:00]}  Ba6 {[%clk 0:02:35]} 11. Re1 {[%clk 0:02:59]}  Rc8 {[%clk 0:02:35]} 12. Nxe4 {[%clk 0:02:57]}  dxe4 {[%clk 0:02:34]} 13. Nd2 {[%clk 0:02:57]}  f5 {[%clk 0:02:30]} 14. Rc1 {[%clk 0:02:51]}  Bd3 {[%clk 0:02:23]} 15. Bf1 {[%clk 0:02:49]}  e5 {[%clk 0:02:17]} 16. dxc5 {[%clk 0:02:44]}  bxc5 {[%clk 0:02:16]} 17. Nc4 {[%clk 0:02:44]}  Qd5 {[%clk 0:02:04]} 18. Qd2 {[%clk 0:02:36]}  Rcd8 {[%clk 0:02:02]} 19. Red1 {[%clk 0:02:35]}  Qe6 {[%clk 0:02:01]} 20. Qe1 {[%clk 0:02:35]}  f4 {[%clk 0:02:00]} 21. exf4 {[%clk 0:02:05]}  exf4 {[%clk 0:01:57]} 22. Bxd3 {[%clk 0:02:03]}  Rxd3 {[%clk 0:01:44]} 23. Rxd3 {[%clk 0:01:58]}  Qh3 {[%clk 0:01:34]} 24. Qxe4 {[%clk 0:01:54]}  f3 {[%clk 0:01:32]} 25. Rxf3 {[%clk 0:01:53]} 1-0


[Site "https://www.chess.com"]

[Event "Titled Tuesday Blitz June 21 Early 2022"]
[White "Andreikin, Dmitry"]
[Black "Oparin, Grigoriy"]
[WhiteFideId "4158814"]
[BlackFideId "24125890"]
[WhiteElo "2736"]
[BlackElo "2639"]
[Result "1/2-1/2"]
[Round "06"]
[TimeControl "180+1"]
[Date "2022.06.21"]
[WhiteClock "0:00:09"]
[BlackClock "0:00:11"]

1. Nf3 {[%clk 0:03:00]}  Nf6 {[%clk 0:03:00]} 2. g3 {[%clk 0:03:01]}  d5 {[%clk 0:03:00]} 3. Bg2 {[%clk 0:03:01]}  e6 {[%clk 0:03:01]} 4. O-O {[%clk 0:03:01]}  Be7 {[%clk 0:03:01]} 5. c4 {[%clk 0:02:59]}  O-O {[%clk 0:03:01]} 6. b3 {[%clk 0:02:58]}  b6 {[%clk 0:02:57]} 7. Bb2 {[%clk 0:02:59]}  Bb7 {[%clk 0:02:57]} 8. e3 {[%clk 0:02:58]}  c5 {[%clk 0:02:54]} 9. Qe2 {[%clk 0:02:56]}  Nc6 {[%clk 0:02:53]} 10. a3 {[%clk 0:02:54]}  Qc7 {[%clk 0:02:52]} 11. Nc3 {[%clk 0:02:53]}  Rfd8 {[%clk 0:02:52]} 12. cxd5 {[%clk 0:02:49]}  Nxd5 {[%clk 0:02:52]} 13. Rac1 {[%clk 0:02:43]}  Nxc3 {[%clk 0:02:49]} 14. Bxc3 {[%clk 0:02:44]}  Rac8 {[%clk 0:02:49]} 15. b4 {[%clk 0:02:39]}  cxb4 {[%clk 0:02:31]} 16. axb4 {[%clk 0:02:40]}  Qb8 {[%clk 0:02:32]} 17. b5 {[%clk 0:02:37]}  Na5 {[%clk 0:02:31]} 18. Nd4 {[%clk 0:02:00]}  Bxg2 {[%clk 0:02:28]} 19. Kxg2 {[%clk 0:02:01]}  Bc5 {[%clk 0:02:22]} 20. Qg4 {[%clk 0:01:52]}  Qb7+ {[%clk 0:02:08]} 21. Kg1 {[%clk 0:01:34]}  f5 {[%clk 0:02:05]} 22. Qf3 {[%clk 0:01:29]}  Bxd4 {[%clk 0:01:58]} 23. Qxb7 {[%clk 0:01:28]}  Nxb7 {[%clk 0:01:58]} 24. Bxd4 {[%clk 0:01:27]}  Nd6 {[%clk 0:01:59]} 25. Rxc8 {[%clk 0:01:20]}  Rxc8 {[%clk 0:01:59]} 26. Rb1 {[%clk 0:01:21]}  Kf7 {[%clk 0:01:55]} 27. Be5 {[%clk 0:01:19]}  Nc4 {[%clk 0:01:20]} 28. Rc1 {[%clk 0:01:19]}  g6 {[%clk 0:01:20]} 29. d3 {[%clk 0:01:11]}  Nd6 {[%clk 0:01:20]} 30. Rb1 {[%clk 0:01:03]}  Ke7 {[%clk 0:01:20]} 31. h4 {[%clk 0:00:57]}  Kd7 {[%clk 0:01:11]} 32. Kg2 {[%clk 0:00:56]}  Rc5 {[%clk 0:01:11]} 33. Bxd6 {[%clk 0:00:56]}  Kxd6 {[%clk 0:01:12]} 34. Ra1 {[%clk 0:00:49]}  Rc7 {[%clk 0:01:09]} 35. Kf3 {[%clk 0:00:47]}  h6 {[%clk 0:01:05]} 36. d4 {[%clk 0:00:45]}  Kd5 {[%clk 0:00:52]} 37. Kf4 {[%clk 0:00:42]}  Rg7 {[%clk 0:00:48]} 38. Rc1 {[%clk 0:00:38]}  g5+ {[%clk 0:00:49]} 39. hxg5 {[%clk 0:00:38]}  hxg5+ {[%clk 0:00:50]} 40. Kf3 {[%clk 0:00:39]}  a5 {[%clk 0:00:37]} 41. bxa6 {[%clk 0:00:27]}  Ra7 {[%clk 0:00:37]} 42. Rb1 {[%clk 0:00:23]}  Rxa6 {[%clk 0:00:36]} 43. Rb4 {[%clk 0:00:20]}  Kc6 {[%clk 0:00:34]} 44. g4 {[%clk 0:00:20]}  b5 {[%clk 0:00:26]} 45. d5+ {[%clk 0:00:15]}  Kc5 {[%clk 0:00:15]} 46. dxe6 {[%clk 0:00:15]}  Rxe6 {[%clk 0:00:10]} 47. gxf5 {[%clk 0:00:15]}  Rf6 {[%clk 0:00:10]} 48. Rb2 {[%clk 0:00:11]}  Rxf5+ {[%clk 0:00:11]} 49. Kg4 {[%clk 0:00:10]}  Re5 {[%clk 0:00:11]} 50. f4 {[%clk 0:00:07]}  gxf4 {[%clk 0:00:12]} 51. exf4 {[%clk 0:00:08]}  Re8 {[%clk 0:00:10]} 52. f5 {[%clk 0:00:08]}  b4 {[%clk 0:00:11]} 53. f6 {[%clk 0:00:08]}  Kc4 {[%clk 0:00:10]} 54. Kf5 {[%clk 0:00:09]}  Kc3 {[%clk 0:00:11]} 55. f7 {[%clk 0:00:08]}  Rf8 {[%clk 0:00:11]} 56. Rxb4 {[%clk 0:00:08]}  Rxf7+ {[%clk 0:00:10]} 57. Ke6 {[%clk 0:00:09]}  Kxb4 {[%clk 0:00:11]} 58. Kxf7 {[%clk 0:00:09]} 1/2-1/2


[Site "https://www.chess.com"]

[Event "Titled Tuesday Blitz June 21 Early 2022"]
[White "Antonio, Jorge Carlos"]
[Black "Khabinets, Ivan"]
[WhiteFideId "113190"]
[BlackFideId "14115980"]
[WhiteElo "2247"]
[BlackElo "2114"]
[Result "0-1"]
[Round "06"]
[TimeControl "180+1"]
[Date "2022.06.21"]
[WhiteClock "0:00:34"]
[BlackClock "0:01:09"]

1. d4 {[%clk 0:02:56]}  d5 {[%clk 0:02:58]} 2. Nf3 {[%clk 0:02:55]}  e6 {[%clk 0:02:58]} 3. Bf4 {[%clk 0:02:51]}  Nf6 {[%clk 0:02:58]} 4. e3 {[%clk 0:02:52]}  Bd6 {[%clk 0:02:59]} 5. Ne5 {[%clk 0:02:48]}  O-O {[%clk 0:02:58]} 6. Bd3 {[%clk 0:02:47]}  c5 {[%clk 0:02:58]} 7. c3 {[%clk 0:02:47]}  Nc6 {[%clk 0:02:59]} 8. Nxc6 {[%clk 0:02:46]}  bxc6 {[%clk 0:02:58]} 9. Bxd6 {[%clk 0:02:46]}  Qxd6 {[%clk 0:02:58]} 10. O-O {[%clk 0:02:47]}  Rb8 {[%clk 0:02:57]} 11. b3 {[%clk 0:02:46]}  cxd4 {[%clk 0:02:56]} 12. cxd4 {[%clk 0:02:45]}  c5 {[%clk 0:02:57]} 13. dxc5 {[%clk 0:02:41]}  Qxc5 {[%clk 0:02:58]} 14. Nd2 {[%clk 0:02:41]}  Bd7 {[%clk 0:02:53]} 15. Rc1 {[%clk 0:02:39]}  Qa5 {[%clk 0:02:53]} 16. Qc2 {[%clk 0:02:33]}  h6 {[%clk 0:02:50]} 17. Qb2 {[%clk 0:02:32]}  Rfc8 {[%clk 0:02:46]} 18. a3 {[%clk 0:02:27]}  Bb5 {[%clk 0:02:43]} 19. Bxb5 {[%clk 0:02:25]}  Qxb5 {[%clk 0:02:44]} 20. b4 {[%clk 0:02:24]}  a5 {[%clk 0:02:39]} 21. Nf3 {[%clk 0:02:17]}  axb4 {[%clk 0:02:28]} 22. Rxc8+ {[%clk 0:02:13]}  Rxc8 {[%clk 0:02:27]} 23. Qxb4 {[%clk 0:02:12]}  Qa6 {[%clk 0:02:08]} 24. Ra1 {[%clk 0:02:07]}  Ne4 {[%clk 0:02:04]} 25. h3 {[%clk 0:02:05]}  Rc2 {[%clk 0:01:57]} 26. a4 {[%clk 0:01:55]}  Rxf2 {[%clk 0:01:52]} 27. Qb8+ {[%clk 0:01:32]}  Kh7 {[%clk 0:01:51]} 28. Qe8 {[%clk 0:01:32]}  Qe2 {[%clk 0:01:47]} 29. Ne1 {[%clk 0:01:21]}  Rf1+ {[%clk 0:01:42]} 30. Kh2 {[%clk 0:01:20]}  Rxe1 {[%clk 0:01:39]} 31. Rxe1 {[%clk 0:01:13]}  Qxe1 {[%clk 0:01:39]} 32. Qxf7 {[%clk 0:01:13]}  Qg3+ {[%clk 0:01:38]} 33. Kg1 {[%clk 0:01:12]}  Qxe3+ {[%clk 0:01:37]} 34. Kh2 {[%clk 0:01:12]}  d4 {[%clk 0:01:31]} 35. Qxe6 {[%clk 0:01:07]}  Qf4+ {[%clk 0:01:30]} 36. Kg1 {[%clk 0:01:01]}  d3 {[%clk 0:01:31]} 37. Qd5 {[%clk 0:00:57]}  d2 {[%clk 0:01:31]} 38. a5 {[%clk 0:00:56]}  Qe3+ {[%clk 0:01:28]} 39. Kh2 {[%clk 0:00:54]}  Qf4+ {[%clk 0:01:25]} 40. Kg1 {[%clk 0:00:53]}  Qf2+ {[%clk 0:01:21]} 41. Kh2 {[%clk 0:00:53]}  Qg3+ {[%clk 0:01:20]} 42. Kg1 {[%clk 0:00:53]}  Qe1+ {[%clk 0:01:16]} 43. Kh2 {[%clk 0:00:52]}  Nf6 {[%clk 0:01:07]} 44. Qf5+ {[%clk 0:00:46]}  Kh8 {[%clk 0:01:08]} 45. Qc8+ {[%clk 0:00:45]}  Ne8 {[%clk 0:01:08]} 46. a6 {[%clk 0:00:41]}  d1=Q {[%clk 0:01:08]} 47. a7 {[%clk 0:00:41]}  Qd5 {[%clk 0:01:08]} 48. a8=Q {[%clk 0:00:36]}  Qde5+ {[%clk 0:01:08]} 49. g3 {[%clk 0:00:34]}  Q5xg3# {[%clk 0:01:09]} 0-1


[Site "https://www.chess.com"]